fUSD/lending_fUSD_20240121
["ID","MTS","AMOUNT","RATE_DAILY","PERIOD"]
[312418940,1705863148258,-500.0,0.00045479,31]
[312418941,1705863148268,-1242.18,0.00045479,31]
[312418942,1705863148278,-500.0,0.00045479,60]
[312418943,1705863148288,-31979.27,0.00045479,31]
[312418944,1705863148298,-500.0,0.00045479,15]
[312418945,1705863148308,-1802.54,0.00045479,31]
[312418946,1705863148317,-500.0,0.00045479,31]
[312418947,1705863148326,-724.71,0.00045479,31]
[312418948,1705863148336,-2046.63,0.00045479,31]
[312418949,1705863148349,-1903.42,0.00045479,31]
[312418950,1705863148359,-1209.74,0.00045479,31]
[312418951,1705863148369,-4903.09,0.00045479,31]
[312418952,1705863148379,-500.0,0.00045479,31]
[312418953,1705863148389,-1146.65,0.00045479,31]
[312418954,1705863148399,-2442.87,0.00045479,31]
[312418955,1705863148409,-500.0,0.00045479,31]
[312418956,1705863148419,-2526.05,0.00045479,31]
[312418957,1705863148430,-2162.48,0.00045479,31]
[312418958,1705863148441,-1626.96,0.00045479,31]
[312418959,1705863148451,-1000.0,0.00045479,2]
[312418960,1705863148460,-1812.71,0.00045479,31]
[312418961,1705863148469,-500.0,0.00045479,31]
[312418962,1705863148479,-509.47,0.00045479,31]
[312418963,1705863148488,-638.08,0.00045479,31]
[312418964,1705863148497,-4768.84,0.00045479,31]
[312418965,1705863148506,-807.78,0.00045479,31]
[312418966,1705863148514,-500.0,0.00045479,31]
[312418967,1705863148524,-500.0,0.00045479,31]
[312418968,1705863148534,-23111.4,0.00045479,31]
[312418969,1705863148545,-641.88,0.00045479,31]
[312418970,1705863148554,-2345.39,0.00045479,31]
[312418971,1705863148565,-1543.52,0.00045479,31]
[312418972,1705863148574,-285.95145527,0.00045479,31]
[312418973,1705863148584,-2539.24,0.00045479,31]
[312418974,1705863148594,-4085.26,0.00045479,31]
[312418975,1705863148603,-500.0,0.00045479,31]
[312418976,1705863148613,-500.0,0.00045479,2]
[312418977,1705863148623,-500.0,0.00045479,31]
[312418978,1705863148633,-1053.53,0.00045479,31]
[312418979,1705863148642,-500.0,0.00045479,31]
[312418980,1705863148651,-1444.4,0.00045479,31]
[312418981,1705863148662,-1203.58,0.00045479,31]
[312418982,1705863148678,-8334.75,0.00045479,31]
[312418983,1705863148687,-1170.03,0.00045479,31]
[312418984,1705863148697,-3868.82,0.00045479,31]
[312418985,1705863148707,-1290.9,0.00045479,31]
[312418986,1705863148719,-2604.67,0.00045479,31]
[312418987,1705863148728,-751.65,0.00045479,31]
[312418988,1705863148738,-500.0,0.00045479,31]
[312418989,1705863148750,-879.17,0.00045479,31]
[312418990,1705863148761,-702.2,0.00045479,31]
[312418991,1705863148771,-1512.38,0.00045479,31]
[312418992,1705863148781,-500.0,0.00045479,31]
[312418993,1705863148791,-3891.13,0.00045479,31]
[312418994,1705863148801,-308.89124316,0.00045479,31]
[312418995,1705863148811,-4210.98,0.00045479,31]
[312418996,1705863148820,-500.0,0.00045479,31]
[312418997,1705863148830,-1010.5,0.00045479,31]
[312418998,1705863148841,-500.0,0.00045479,31]
[312418999,1705863148850,-5113.55,0.00045479,31]
[312419000,1705863148859,-5553.41,0.00045479,31]
[312419001,1705863148869,-500.0,0.00045479,31]
[312419002,1705863148878,-2021.88,0.00045479,31]
[312419003,1705863148887,-831.35,0.00045479,31]
[312419004,1705863148897,-500.0,0.00045479,31]
[312419005,1705863148906,-1451.78,0.00045479,31]
[312419006,1705863148914,-2047.15,0.00045479,31]
[312419007,1705863148924,-500.0,0.00045479,31]
[312419008,1705863148933,-500.0,0.00045479,31]
[312419009,1705863148943,-1645.64,0.00045479,31]
[312419010,1705863148953,-500.0,0.00045479,31]
[312419011,1705863148962,-928.47,0.00045479,31]
[312419012,1705863148972,-1009.2,0.00045479,31]
[312419013,1705863148982,-1721.6,0.00045479,31]
[312419014,1705863148991,-507.02,0.00045479,31]
[312419015,1705863149000,-500.0,0.00045479,31]
[312419016,1705863149009,-833.04,0.00045479,31]
[312419017,1705863149019,-500.0,0.00045479,31]
[312419018,1705863149028,-853.75,0.00045479,31]
[312419019,1705863149038,-3752.11,0.00045479,31]
[312419020,1705863149048,-1139.83,0.00045479,31]
[312419021,1705863149057,-2604.2,0.00045479,31]
[312419022,1705863149067,-205.53755567,0.00045479,30]
[312419023,1705863149078,-3344.19,0.00045479,31]
[312419024,1705863149088,-656.95,0.00045479,31]
[312419025,1705863149098,-500.0,0.00045479,31]
[312419026,1705863149107,-500.0,0.00045479,31]
[312419027,1705863149117,-1369.33,0.00045479,31]
[312419028,1705863149126,-500.0,0.00045479,31]
[312419029,1705863149136,-500.0,0.00045479,31]
[312419030,1705863149145,-2125.69,0.00045479,31]
[312419031,1705863149155,-2177.35,0.00045479,31]
[312419032,1705863149164,-523.94,0.00045479,31]
[312419033,1705863149174,-1442.9,0.00045479,31]
[312419034,1705863149184,-1712.99,0.00045479,31]
[312419035,1705863149194,-500.0,0.00045479,31]
[312419036,1705863149204,-1404.4,0.00045479,31]
[312419037,1705863149214,-500.0,0.00045479,31]
[312419038,1705863149223,-500.0,0.00045479,31]
[312419039,1705863149234,-500.0,0.00045479,31]
[312419040,1705863149244,-1360.45,0.00045479,31]
[312419041,1705863149253,-504.9,0.00045479,31]
[312419042,1705863149263,-500.0,0.00045479,31]
[312419043,1705863149272,-989.76,0.00045479,31]
[312419044,1705863149282,-500.0,0.00045479,31]
[312419045,1705863149291,-2806.49,0.00045479,31]
[312419046,1705863149301,-1242.78,0.00045479,31]
[312419047,1705863149311,-10132.2,0.00045479,31]
[312419048,1705863149320,-500.0,0.00045479,31]
[312419049,1705863149329,-627.09,0.00045479,31]
[312419050,1705863149340,-2496.9,0.00045479,31]
[312419051,1705863149349,-500.0,0.00045479,31]
[312419052,1705863149359,-3890.38,0.00045479,31]
[312419053,1705863149368,-1097.31,0.00045479,31]
[312419054,1705863149378,-496.85692388,0.00045479,31]
[312419055,1705863149388,-4035.88,0.00045479,31]
[312419056,1705863149398,-1353.68,0.00045479,31]
[312419057,1705863149409,-10189.15,0.00045479,31]
[312419058,1705863149419,-500.0,0.00045479,31]
[312419059,1705863149428,-775.43,0.00045479,31]
[312419060,1705863149437,-4930.09,0.00045479,31]
[312419061,1705863149446,-500.0,0.00045479,31]
[312419062,1705863149456,-500.0,0.00045479,10]
[312419063,1705863149465,-500.0,0.00045479,31]
[312419064,1705863149474,-4049.62,0.00045479,31]
[312419065,1705863149483,-500.0,0.00045479,31]
[312419066,1705863149493,-500.0,0.00045479,31]
[312419067,1705863149502,-678.75,0.00045479,31]
[312419068,1705863149511,-500.0,0.00045479,31]
[312419069,1705863149521,-1229.34,0.00045479,31]
[312419070,1705863149530,-500.0,0.00045479,2]
[312419071,1705863149539,-500.0,0.00045479,31]
[312419072,1705863149548,-3443.53,0.00045479,31]
[312419073,1705863149557,-150.0,0.00045483,2]
[312419074,1705863149566,-150.0,0.00045486,2]
[312419075,1705863149576,-151.70631307,0.00045491,2]
[312419076,1705863149585,-2110.0,0.000455,15]
[312419077,1705863149593,-150.0,0.000455,2]
[312419078,1705863149603,-300.0,0.000455,2]
[312419079,1705863149613,-150.0,0.00045517,2]
[312419080,1705863149622,-150.0,0.0004552,2]
[312419081,1705863149632,-150.0,0.00045527,2]
[312419082,1705863149641,-300.0,0.0004553,2]
[312419083,1705863149650,-150.0,0.0004553,2]
[312419084,1705863149659,-500.0,0.00045532,2]
[312419085,1705863149669,-200.0,0.00045532,30]
[312419086,1705863149681,-800.0,0.00045532,30]
[312419087,1705863149691,-150.0,0.00045533,2]
[312419088,1705863149700,-150.0,0.00045546,2]
[312419089,1705863149708,-150.0,0.00045547,2]
[312419090,1705863149718,-150.0,0.00045547,2]
[312419091,1705863149728,-355.40143417,0.00045553,30]
[312419092,1705863149737,-150.0,0.00045557,2]
[312419093,1705863149747,-1500.0,0.00045563,2]
[312419094,1705863149757,-150.0,0.00045569,2]
[312419095,1705863149767,-150.0,0.00045571,2]
[312419096,1705863149777,-150.0,0.00045578,2]
[312419097,1705863149787,-150.0,0.0004558,2]
[312419098,1705863149796,-150.0,0.00045608,2]
[312419099,1705863149806,-300.0,0.0004561,2]
[312419100,1705863149815,-150.0,0.00045615,2]
[312419101,1705863149824,-150.0,0.00045622,2]
[312419102,1705863149834,-157.24176502,0.00045622,30]
[312419103,1705863149843,-150.0,0.00045632,2]
[312419104,1705863149852,-150.0,0.00045633,2]
[312419105,1705863149862,-150.0,0.00045638,2]
[312419106,1705863149871,-1500.0,0.00045647,2]
[312419107,1705863149880,-150.0,0.00045654,2]
[312419108,1705863149889,-1500.0,0.00045654,2]
[312419109,1705863149899,-263.37,0.00045656,3]
[312419110,1705863149909,-150.0,0.00045659,2]
[312419111,1705863149918,-2000.0,0.00045671,3]
[312419112,1705863149927,-1500.0,0.00045678,2]
[312419113,1705863149937,-304.70684348,0.00045687,2]
[312419114,1705863149946,-953.43125292,0.00045691,30]
[312419115,1705863149956,-150.0,0.00045697,2]
[312419116,1705863149965,-4420.2,0.000457,5]
[312419117,1705863149975,-4420.2,0.000457,5]
[312419118,1705863149984,-4420.2,0.000457,5]
[312419119,1705863149993,-4420.2,0.000457,5]
[312419120,1705863150002,-4420.2,0.000457,5]
[312419121,1705863150011,-4420.2,0.000457,5]
[312419122,1705863150032,-4420.2,0.000457,5]
[312419123,1705863150043,-4420.2,0.000457,5]
[312419124,1705863150052,-4420.2,0.000457,5]
[312419125,1705863150061,-4420.2,0.000457,5]
[312419126,1705863150071,-4420.2,0.000457,5]
[312419127,1705863150080,-4420.2,0.000457,5]
[312419128,1705863150090,-4420.2,0.000457,5]
[312419129,1705863150099,-4420.2,0.000457,5]
[312419130,1705863150108,-4420.2,0.000457,5]
[312419131,1705863150118,-4420.2,0.000457,5]
[312419132,1705863150128,-4420.2,0.000457,5]
[312419133,1705863150137,-4420.2,0.000457,5]
[312419134,1705863150147,-4420.2,0.000457,5]
[312419135,1705863150156,-4420.2,0.000457,5]
[312419136,1705863150166,-157.96,0.000457,5]
[312419137,1705863150175,-157.96,0.000457,5]
[312419138,1705863150184,-157.96,0.000457,5]
[312419139,1705863150194,-157.96,0.000457,5]
[312419140,1705863150203,-157.96,0.000457,5]
[312419141,1705863150214,-157.96,0.000457,5]
[312419142,1705863150223,-157.96,0.000457,5]
[312419143,1705863150233,-152.73,0.000457,5]
[312419144,1705863150242,-152.73,0.000457,5]
[312419145,1705863150252,-152.73,0.000457,5]
[312419146,1705863150262,-152.73,0.000457,5]
[312419147,1705863150272,-152.73,0.000457,5]
[312419148,1705863150281,-152.73,0.000457,5]
[312419149,1705863150291,-152.73,0.000457,5]
[312419150,1705863150300,-152.73,0.000457,5]
[312419151,1705863150310,-152.73,0.000457,5]
[312419152,1705863150319,-152.73,0.000457,5]
[312419153,1705863150329,-152.73,0.000457,5]
[312419154,1705863150339,-150.0,0.0004573,2]
[312419155,1705863150349,-150.0,0.00045732,2]
[312419156,1705863150358,-150.0,0.00045733,2]
[312419157,1705863150369,-173.89946187,0.00045737,30]
[312419158,1705863150378,-1500.0,0.00045738,2]
[312419159,1705863150388,-355.40143445,0.00045745,30]
[312419160,1705863150398,-150.0,0.00045755,2]
[312419161,1705863150407,-1500.0,0.00045764,2]
[312419162,1705863150417,-157.24176505,0.00045778,30]
[312419163,1705863150426,-364.73162279,0.00045782,14]
[312419164,1705863150436,-181.63371409,0.00045782,14]
[312419165,1705863150446,-248.61643646,0.00045782,14]
[312419166,1705863150456,-276.18212841,0.00045782,14]
[312419167,1705863150466,-218.49632604,0.00045782,14]
[312419168,1705863150477,-156.83041754,0.00045808,30]
[312419169,1705863150486,-150.0,0.00045822,2]
[312419170,1705863150495,-150.0,0.00045837,2]
[312419171,1705863150504,-150.0,0.00045838,2]
[312419172,1705863150513,-150.0,0.00045843,2]
[312419173,1705863150523,-150.0,0.00045843,2]
[312419174,1705863150532,-150.0,0.00045857,2]
[312419175,1705863150542,-400.0,0.0004587,3]
[312419176,1705863150552,-356.96146669,0.0004587,3]
[312419177,1705863150562,-150.0,0.00045877,2]
[312419178,1705863150572,-150.0,0.00045882,2]
[312419179,1705863150581,-150.0,0.0004589,2]
[312419180,1705863150590,-150.0,0.00045896,2]
[312419181,1705863150600,-51475.76703878,0.00045899,2]
[312419182,1705863150609,-7480.8775114,0.00045899,2]
[312419183,1705863150620,-4722.17961091,0.00045899,2]
[312419184,1705863150629,-4338.02976665,0.00045899,2]
[312419185,1705863150778,-1839.05780797,0.00045899,2]
[312419186,1705863150793,-102714.75519081,0.000459,30]
[312419187,1705863150803,-50000.0,0.000459,30]
[312419188,1705863150812,-300.0,0.000459,22]
[312419189,1705863150822,-151.0,0.000459,14]
[312419190,1705863150832,-236.314096,0.000459,17]
[312419191,1705863150841,-253.013578,0.000459,17]
[312419192,1705863150850,-928.661083,0.000459,10]
[312419193,1705863150860,-500.0,0.000459,10]
[312419194,1705863150869,-1238.2206526,0.000459,19]
[312419195,1705863150878,-1040.685676,0.000459,19]
[312419196,1705863150888,-1866.934848,0.000459,19]
[312419197,1705863150897,-706.5707,0.000459,2]
[312419198,1705863150906,-706.5707,0.000459,2]
[312419199,1705863150916,-150.0,0.000459,22]
[312419200,1705863150926,-2622.3081,0.000459,2]
[312419201,1705863150936,-2622.3081,0.000459,2]
[312419202,1705863150945,-2931.5,0.0004591,111]
[312419203,1705863150955,-400.0,0.00045918,120]
[312419204,1705863150965,-2463.9597523,0.00045927,2]
[312419205,1705863150974,-1000.0,0.00045931,4]
[312419206,1705863150984,-604.0,0.00045959,7]
[312419207,1705863150994,-200.0,0.00045987,41]
[312419208,1705863151003,-200.0,0.00045987,48]
[312419209,1705863151012,-1866.0,0.0004599,3]
[312419210,1705863151022,-5981.0754751,0.00045996,2]
[312419211,1705863151030,-54196.6332228,0.00045996,2]
[312419212,1705863151041,-2223.5625298,0.00045996,2]
[312419213,1705863151050,-57435.1208041,0.00045996,2]
[312419214,1705863151060,-50000.0,0.00046,26]
[312419215,1705863151070,-161.67442681,0.00046,4]
[312419216,1705863151079,-150.0,0.00046,10]
[312419217,1705863151089,-55822.31048728,0.00046,10]
[312419218,1705863151098,-1814.69011052,0.00046,7]
[312419219,1705863151108,-152.7576,0.00046,30]
[312419220,1705863151117,-281.56554644,0.00046,120]
[312419221,1705863151127,-1000.0,0.00046,30]
[312419222,1705863151136,-1121.10764771,0.00046,120]
[312419223,1705863151145,-250.0,0.00046,30]
[312419224,1705863151154,-873.24832757,0.00046,38]
[312419225,1705863151165,-300.0,0.00046,47]
[312419226,1705863151176,-1573.0,0.00046,120]
[312419227,1705863151186,-2110.0,0.00046,15]
[312419228,1705863151195,-2000.0,0.00046,60]
[312419229,1705863151204,-1850.0,0.00046,3]
[312419230,1705863151214,-200.0,0.00046,30]
[312419231,1705863151223,-597.66,0.00046027,30]
[312419232,1705863151233,-500.0,0.00046027,5]
[312419233,1705863151242,-555.52,0.00046027,31]
[312419234,1705863151251,-500.0,0.00046027,31]
[312419235,1705863151261,-664.7,0.00046027,2]
[312419236,1705863151270,-503.87,0.00046027,31]
[312419237,1705863151281,-552.56,0.00046027,31]
[312419238,1705863151291,-548.42,0.00046027,31]
[312419239,1705863151302,-500.0,0.00046027,31]
[312419240,1705863151311,-500.0,0.00046027,31]
[312419241,1705863151321,-545.31,0.00046027,31]
[312419242,1705863151330,-500.0,0.00046027,31]
[312419243,1705863151339,-609.33,0.00046027,31]
[312419244,1705863151349,-500.0,0.00046027,31]
[312419245,1705863151358,-500.0,0.00046027,31]
[312419246,1705863151369,-534.84,0.00046027,31]
[312419247,1705863151378,-500.0,0.00046027,31]
[312419248,1705863151388,-983.24,0.00046027,31]
[312419249,1705863151397,-500.0,0.00046027,31]
[312419250,1705863151406,-204.76695277,0.00046027,31]
[312419251,1705863151417,-500.0,0.00046027,31]
[312419252,1705863151427,-500.0,0.00046027,31]
[312419253,1705863151436,-540.33,0.00046027,31]
[312419254,1705863151446,-500.0,0.00046027,31]
[312419255,1705863151455,-622.72,0.00046027,31]
[312419256,1705863151465,-208.07333009,0.00046027,31]
[312419257,1705863151475,-500.0,0.00046027,31]
[312419258,1705863151484,-500.0,0.00046027,31]
[312419259,1705863151493,-500.0,0.00046027,31]
[312419260,1705863151502,-553.34,0.00046027,31]
[312419261,1705863151511,-500.0,0.00046027,31]
[312419262,1705863151521,-547.07,0.00046027,31]
[312419263,1705863151530,-500.0,0.00046027,31]
[312419264,1705863151540,-540.68,0.00046027,31]
[312419265,1705863151549,-500.0,0.00046027,31]
[312419266,1705863151560,-662.98,0.00046027,20]
[312419267,1705863151570,-500.0,0.00046027,31]
[312419268,1705863151579,-500.0,0.00046027,31]
[312419269,1705863151589,-1000.0,0.00046027,2]
[312419270,1705863151598,-500.0,0.00046027,31]
[312419271,1705863151608,-679.87,0.00046027,31]
[312419272,1705863151617,-500.0,0.00046027,31]
[312419273,1705863151626,-500.0,0.00046027,31]
[312419274,1705863151636,-500.0,0.00046027,31]
[312419275,1705863151645,-801.92,0.00046027,31]
[312419276,1705863151654,-500.0,0.00046027,31]
[312419277,1705863151663,-500.0,0.00046027,31]
[312419278,1705863151673,-500.0,0.00046027,31]
[312419279,1705863151685,-556.67,0.00046027,31]
[312419280,1705863151694,-356.88749048,0.00046027,31]
[312419281,1705863151703,-500.0,0.00046027,31]
[312419282,1705863151712,-500.0,0.00046027,31]
[312419283,1705863151721,-500.0,0.00046027,31]
[312419284,1705863151731,-500.0,0.00046027,31]
[312419285,1705863151740,-628.07,0.00046027,31]
[312419286,1705863151751,-500.0,0.00046027,31]
[312419287,1705863151760,-500.0,0.00046027,31]
[312419288,1705863151769,-500.0,0.00046027,31]
[312419289,1705863151779,-500.0,0.00046027,31]
[312419290,1705863151788,-663.06,0.00046027,31]
[312419291,1705863151798,-500.0,0.00046027,31]
[312419292,1705863151808,-500.0,0.00046027,31]
[312419293,1705863151818,-500.0,0.00046027,31]
[312419294,1705863151827,-500.0,0.00046027,31]
[312419295,1705863151837,-562.47,0.00046027,31]
[312419296,1705863151846,-500.0,0.00046027,31]
[312419297,1705863151856,-331.9885051,0.00046027,31]
[312419298,1705863151865,-500.0,0.00046027,31]
[312419299,1705863151874,-875.16,0.00046027,31]
[312419300,1705863151883,-500.0,0.00046027,31]
[312419301,1705863151892,-500.0,0.00046027,31]
[312419302,1705863151901,-1217.3,0.00046027,31]
[312419303,1705863151911,-859.18,0.00046027,31]
[312419304,1705863151920,-500.0,0.00046027,31]
[312419305,1705863151929,-574.98,0.00046027,31]
[312419306,1705863151938,-500.0,0.00046027,31]
[312419307,1705863151947,-500.0,0.00046027,31]
[312419308,1705863151956,-500.0,0.00046027,31]
[312419309,1705863151965,-547.06,0.00046027,31]
[312419310,1705863151974,-263.07930554,0.00046027,2]
[312419311,1705863152891,-488.7655902,0.00041643,31]
[312419312,1705863152943,-11.2344098,0.00041643,31]
[312419313,1705863152953,-302.94021686,0.00046027,2]
[312419314,1705863153803,-500.0,0.00041095,5]
[312419315,1705863153813,-607.96,0.00041095,31]
[312419316,1705863153823,-607.96,0.00041643,31]
[312419317,1705863153832,-500.0,0.00042191,31]
[312419318,1705863153842,-500.0,0.00042739,31]
[312419319,1705863153852,-500.0,0.00043287,31]
[312419320,1705863153862,-500.0,0.00043835,31]
[312419321,1705863153871,-500.0,0.00044383,31]
[312419322,1705863153881,-500.0,0.00044931,31]
[312419323,1705863153890,-359.28784742,0.00045479,31]
[312419324,1705863153899,-451.5204776,0.00046027,2]
[312419325,1705863153908,-500.0,0.00046027,31]
[312419326,1705863153918,-952.82,0.00046027,31]
[312419327,1705863153927,-500.0,0.00046027,31]
[312419328,1705863153936,-500.0,0.00046027,31]
[312419329,1705863153945,-1019.1,0.00046027,31]
[312419330,1705863153955,-590.85,0.00046027,31]
[312419331,1705863153964,-670.02,0.00046027,31]
[312419332,1705863153974,-500.0,0.00046027,31]
[312419333,1705863153983,-899.25,0.00046027,31]
[312419334,1705863153992,-500.0,0.00046027,31]
[312419335,1705863154001,-77.85950021,0.00046027,31]
[312419336,1705863154013,-422.14049979,0.00046027,31]
[312419337,1705863154022,-500.0,0.00046027,31]
[312419338,1705863154033,-500.0,0.00046027,31]
[312419339,1705863154042,-1000.0,0.00046027,31]
[312419340,1705863154051,-500.0,0.00046027,31]
[312419341,1705863154061,-284.54832779,0.00046027,31]
[312419342,1705863154071,-646.33,0.00046027,31]
[312419343,1705863154081,-500.0,0.00046027,31]
[312419344,1705863154090,-500.0,0.00046027,31]
[312419345,1705863154099,-500.0,0.00046027,31]
[312419346,1705863154109,-1051.97,0.00046027,31]
[312419347,1705863154118,-1736.1,0.00046027,31]
[312419348,1705863154128,-779.96,0.00046027,31]
[312419349,1705863154137,-500.0,0.00046027,31]
[312419350,1705863154146,-500.0,0.00046027,31]
[312419351,1705863154156,-500.0,0.00046027,31]
[312419352,1705863154165,-758.95,0.00046027,31]
[312419353,1705863154175,-552.16,0.00046027,31]
[312419354,1705863154184,-500.0,0.00046027,31]
[312419355,1705863154194,-828.98,0.00046027,31]
[312419356,1705863154204,-832.67,0.00046027,31]
[312419357,1705863154213,-500.0,0.00046027,31]
[312419358,1705863154223,-885.24,0.00046027,2]
[312419359,1705863154232,-1089.54,0.00046027,31]
[312419360,1705863154242,-500.0,0.00046027,31]
[312419361,1705863154252,-1094.52,0.00046027,31]
[312419362,1705863154261,-500.0,0.00046027,31]
[312419363,1705863154271,-994.47,0.00046027,31]
[312419364,1705863154280,-1710.22,0.00046027,31]
[312419365,1705863154289,-500.0,0.00046027,31]
[312419366,1705863154298,-500.0,0.00046027,31]
[312419367,1705863154308,-1261.22,0.00046027,31]
[312419368,1705863154318,-500.0,0.00046027,31]
[312419369,1705863154327,-1142.33,0.00046027,31]
[312419370,1705863154337,-500.0,0.00046027,31]
[312419371,1705863154346,-500.0,0.00046027,31]
[312419372,1705863154355,-695.88,0.00046027,31]
[312419373,1705863154364,-852.67,0.00046027,31]
[312419374,1705863154374,-500.0,0.00046027,31]
[312419375,1705863154383,-848.47,0.00046027,31]
[312419376,1705863154392,-500.0,0.00046027,31]
[312419377,1705863154402,-764.06,0.00046027,31]
[312419378,1705863154411,-500.0,0.00046027,31]
[312419379,1705863154420,-500.0,0.00046027,31]
[312419380,1705863154429,-1037.5,0.00046027,31]
[312419381,1705863154438,-1061.05,0.00046027,31]
[312419382,1705863154448,-500.0,0.00046027,31]
[312419383,1705863154459,-1032.07,0.00046027,31]
[312419384,1705863154469,-539.06,0.00046027,20]
[312419385,1705863154478,-1080.19,0.00046027,31]
[312419386,1705863154488,-500.0,0.00046027,31]
[312419387,1705863154498,-584.66,0.00046027,31]
[312419388,1705863154508,-508.46,0.00046027,31]
[312419389,1705863154517,-810.58,0.00046027,31]
[312419390,1705863154526,-177.61251,0.00046027,31]
[312419391,1705863154553,-500.0,0.00041643,5]
[312419392,1705863154563,-35.74975913,0.00046027,31]
[312419395,1705863245787,4639.36303684,0.0002,2]
[312419425,1705864231932,-247.24074097,0.00020614,2]
[312419427,1705864231942,-220.37,0.00020615,2]
[312419429,1705864231951,-135.40039671,0.0002161,2]
[312419431,1705864231964,-114.59960329,0.0002161,2]
[312419432,1705864231974,-154.59,0.00021637,10]
[312419433,1705864231985,-200.0,0.00021756,2]
[312419434,1705864231996,-150.0,0.00021806,2]
[312419435,1705864232006,-6389.74343783,0.00021807,2]
[312419436,1705864232020,-667.61891395,0.00021807,2]
[312419437,1705864232031,-12437.4,0.00021807,2]
[312419438,1705864232043,-2872.46869429,0.00021807,2]
[312419439,1705864232072,-267.08895393,0.00021807,2]
[312419440,1705864232083,-867.63104607,0.00021841,2]
[312419441,1705864232117,-353.8644483,0.00021841,2]
[312419442,1705864232128,-341.48500725,0.00021841,2]
[312419443,1705864232140,-437.01949838,0.00021841,2]
[312419444,1705864232151,-326.35285752,0.00021875,2]
[312419445,1705864232164,-303.01714248,0.00021875,2]
[312419446,1705864232174,-250.0,0.000219,2]
[312419447,1705864232184,-499.99,0.000219,2]
[312419448,1705864232194,-156.91,0.00021971,2]
[312419449,1705864232203,-1250.0,0.00022,3]
[312419450,1705864232214,-426.37,0.00022,2]
[312419451,1705864232223,-250.0,0.00022062,2]
[312419452,1705864232232,-287.17,0.00022247,2]
[312419453,1705864232242,-161.35981866,0.00022344,2]
[312419454,1705864232253,-237.79,0.00022444,2]
[312419455,1705864232262,-161.35981865,0.00022455,2]
[312419456,1705864232272,-156.91,0.00022543,2]
[312419457,1705864232281,-161.35981865,0.00022566,2]
[312419459,1705864232291,-161.35981865,0.00022678,2]
[312419461,1705864232300,-629.37,0.00022685,2]
[312419462,1705864232309,-161.35981865,0.00022789,2]
[312419463,1705864232319,-489.6982,0.000228,2]
[312419464,1705864232328,-1255.0842,0.000228,2]
[312419465,1705864232337,-220.37,0.00022879,2]
[312419466,1705864232347,-1103.89151492,0.00022898,2]
[312419467,1705864232361,-272.14563912,0.00022898,2]
[312419468,1705864232371,-160.6463697,0.00022899,2]
[312419469,1705864232381,-161.35981865,0.000229,2]
[312419471,1705864232391,-1000.0,0.000229,2]
[312419473,1705864232401,-154.91273174,0.000229,2]
[312419475,1705864232410,-34988.54024855,0.000229,2]
[312419477,1705864232451,-517.85068696,0.000229,2]
[312419478,1705864232464,-564.66263687,0.000229,2]
[312419479,1705864232476,-521.07491688,0.000229,2]